bitfinex/quotes_BTCUSD_20240718
["timestamp","ask_amount","ask_price","bid_price","bid_amount"]
[1721261284983,0.155881,64152.0,64145.0,0.23306979]
[1721261284984,0.0498987,64160.0,64153.0,0.1365]
[1721261285179,0.0498987,64160.0,64153.0,0.604128]
[1721261285411,0.311749,64154.0,64153.0,0.1365]
[1721261285651,0.467623,64154.0,64153.0,0.1365]
[1721261285859,0.779372,64154.0,64153.0,0.1365]
[1721261288296,0.474623,64154.0,64153.0,0.1365]
[1721261288844,0.486623,64154.0,64153.0,0.1365]
[1721261289264,0.791372,64154.0,64153.0,0.1365]
[1721261289465,0.479623,64154.0,64153.0,0.1365]
[1721261289620,0.486623,64154.0,64153.0,0.1365]
[1721261290020,0.474623,64154.0,64153.0,0.1365]
[1721261290226,0.486623,64154.0,64153.0,0.1365]
[1721261290660,0.786372,64154.0,64153.0,0.1365]
[1721261290861,0.486623,64154.0,64153.0,0.1365]
[1721261291820,0.486623,64154.0,64136.0,0.4668]
[1721261291821,0.62355,64149.0,64136.0,0.4668]
[1721261292047,0.62355,64149.0,64134.0,0.218922]
[1721261292048,0.2237,64145.0,64134.0,0.063]
[1721261292265,0.467763,64135.0,64134.0,0.063]
[1721261292488,1.091531,64130.0,64129.0,0.1]
[1721261292692,1.74441284,64130.0,64129.0,0.1]
[1721261292938,1.86741284,64130.0,64129.0,0.1]
[1721261293347,1.94461979,64130.0,64129.0,0.1]
[1721261293548,1.94457161,64130.0,64129.0,0.1]
[1721261294159,1.94557161,64130.0,64129.0,0.102]
[1721261294486,1.94557151,64130.0,64129.0,0.102]
[1721261294610,1.94557151,64130.0,64129.0,0.102913]
[1721261294611,2.30743751,64130.0,64129.0,0.102913]
[1721261295645,2.25743751,64130.0,64129.0,0.102913]
[1721261295859,1.94557151,64130.0,64129.0,0.102913]
[1721261296063,1.94457151,64130.0,64129.0,0.101913]
[1721261296268,1.94457151,64130.0,64129.0,0.100913]
[1721261296269,2.00857151,64130.0,64129.0,0.100913]
[1721261296755,1.95857151,64130.0,64129.0,0.100913]
[1721261296961,1.94457151,64130.0,64129.0,0.100913]
[1721261297161,1.95857151,64130.0,64129.0,0.100913]
[1721261297362,1.97267859,64130.0,64129.0,0.100913]
[1721261297586,2.02267859,64130.0,64129.0,0.100913]
[1721261298149,1.97267859,64130.0,64129.0,0.100913]
[1721261298285,2.33454459,64130.0,64129.0,0.100913]
[1721261299012,2.48204459,64130.0,64129.0,0.100913]
[1721261299364,2.61433697,64130.0,64129.0,0.100913]
[1721261299582,2.72998416,64130.0,64129.0,0.100913]
[1721261299760,2.70198416,64130.0,64129.0,0.100913]
[1721261299914,2.71598416,64130.0,64129.0,0.100913]
[1721261300117,2.84799776,64130.0,64129.0,0.100913]
[1721261300437,2.61618431,64130.0,64129.0,0.100913]
[1721261300678,2.8473975,64130.0,64129.0,0.100913]
[1721261300882,2.63018431,64130.0,64129.0,0.100913]
[1721261301083,2.86139708,64130.0,64129.0,0.100913]
[1721261301612,2.86141113,64130.0,64129.0,0.100913]
[1721261302184,2.86141113,64130.0,64129.0,0.038539]
[1721261302503,2.86141113,64130.0,64129.0,1e-06]
[1721261302931,1.567542,64128.0,64127.0,0.009185]
[1721261303047,2.34985056,64128.0,64127.0,0.009185]
[1721261303466,2.22863573,64128.0,64127.0,0.009185]
[1721261303673,2.32096539,64128.0,64127.0,0.009185]
[1721261304096,2.38496539,64128.0,64127.0,0.009185]
[1721261304388,2.39896539,64128.0,64127.0,0.009185]
[1721261304936,2.20663573,64128.0,64127.0,0.009185]
[1721261305474,2.25663573,64128.0,64127.0,0.009185]
[1721261305677,2.20663573,64128.0,64127.0,0.009185]
[1721261305885,2.19263573,64128.0,64127.0,0.009185]
[1721261306350,2.20663573,64128.0,64127.0,0.009185]
[1721261306764,2.17869669,64128.0,64127.0,0.009185]
[1721261306978,2.19269669,64128.0,64127.0,0.009185]
[1721261307187,2.20669669,64128.0,64127.0,0.009185]
[1721261307621,2.24269669,64128.0,64127.0,0.009185]
[1721261308024,2.25669669,64128.0,64127.0,0.009185]
[1721261308267,2.30468872,64128.0,64127.0,0.009185]
[1721261308435,2.61656472,64128.0,64127.0,0.009185]
[1721261308849,2.20669669,64128.0,64127.0,0.009185]
[1721261309065,2.25669669,64128.0,64127.0,0.009185]
[1721261309765,2.5671369,64128.0,64127.0,0.009185]
[1721261310268,2.45849974,64128.0,64127.0,0.009185]
[1721261310404,2.56761598,64128.0,64127.0,0.009185]
[1721261311572,2.76555555,64128.0,64127.0,0.009185]
[1721261311706,2.81555555,64128.0,64127.0,0.009185]
[1721261312766,2.81626375,64128.0,64127.0,0.009185]
[1721261315995,2.81587629,64128.0,64127.0,0.009185]
[1721261316390,2.95765868,64128.0,64127.0,0.009185]
[1721261318539,2.80330911,64128.0,64127.0,0.009185]
[1721261319165,2.55208974,64128.0,64127.0,0.009185]
[1721261319289,2.80339385,64128.0,64127.0,0.009185]
[1721261319683,2.80339773,64128.0,64127.0,0.009185]
[1721261320870,3.02709773,64128.0,64127.0,0.009185]
[1721261321197,2.9577473,64128.0,64127.0,0.009185]
[1721261321402,2.98294963,64128.0,64127.0,0.009185]
[1721261322199,2.73164164,64128.0,64127.0,0.009185]
[1721261322411,2.98240456,64128.0,64127.0,0.009185]
[1721261322817,3.20610456,64128.0,64127.0,0.009185]
[1721261323223,2.98240456,64128.0,64127.0,0.009185]
[1721261323431,3.20610456,64128.0,64127.0,0.009185]
[1721261323878,2.34958899,64128.0,64127.0,0.009185]
[1721261325397,2.3726711,64128.0,64127.0,0.009185]
[1721261325899,2.2085711,64128.0,64127.0,0.009185]
[1721261326826,2.3729711,64128.0,64127.0,0.009185]
[1721261327409,2.7348471,64128.0,64127.0,0.009185]
[1721261327609,2.8786471,64128.0,64127.0,0.009185]
[1721261327813,3.1959371,64128.0,64127.0,0.009185]
[1721261328010,1.305997,64126.0,64119.0,0.1]
[1721261328188,2.1713111,64126.0,64125.0,0.02471739]
[1721261328393,2.06206708,64126.0,64125.0,0.02471739]
[1721261328579,2.17012526,64126.0,64125.0,0.02471739]
[1721261328775,2.48201026,64126.0,64125.0,0.02471739]
[1721261329025,2.23235107,64126.0,64125.0,0.02471739]
[1721261329175,2.68875405,64126.0,64125.0,0.02471739]
[1721261329395,2.68875405,64126.0,64119.0,0.1]
[1721261329396,1.879932,64120.0,64119.0,0.1]
[1721261329614,2.7048812,64120.0,64119.0,0.1]
[1721261329818,2.6548812,64120.0,64119.0,0.1]
[1721261330222,2.7048812,64120.0,64119.0,0.1]
[1721261330827,2.71657163,64120.0,64119.0,0.1]
[1721261331043,2.66657163,64120.0,64119.0,0.1]
[1721261331466,2.35465663,64120.0,64119.0,0.1]
[1721261331672,2.22586185,64120.0,64119.0,0.1]
[1721261332007,2.36490393,64120.0,64119.0,0.1]
[1721261332223,1.64188893,64120.0,64119.0,0.2435]
[1721261332345,0.76367719,64120.0,64119.0,0.2435]
[1721261332549,1.07559219,64120.0,64119.0,0.2435]
[1721261332870,0.93655011,64120.0,64119.0,0.2435]
[1721261334086,1.40284685,64120.0,64119.0,0.2435]
[1721261334287,1.54433572,64120.0,64119.0,0.2435]
[1721261334634,1.29628607,64120.0,64119.0,0.2435]
[1721261334787,1.79750409,64120.0,64119.0,0.1]
[1721261335462,1.82050409,64120.0,64119.0,0.1]
[1721261335665,2.29681909,64120.0,64119.0,0.1]
[1721261335868,2.3662342,64120.0,64119.0,0.1]
[1721261336253,2.39681909,64120.0,64119.0,0.1]
[1721261336455,2.51251094,64120.0,64119.0,0.1]
[1721261336653,2.51270152,64120.0,64119.0,0.1]
[1721261337559,2.14620993,64120.0,64119.0,0.1]
[1721261337807,2.39427916,64120.0,64119.0,0.1]
[1721261338325,2.39462708,64120.0,64119.0,0.1]
[1721261338827,2.39462713,64120.0,64119.0,0.1]
[1721261339524,2.28550435,64120.0,64119.0,0.1]
[1721261339662,2.14401827,64120.0,64119.0,0.1]
[1721261340667,1.89560107,64120.0,64119.0,0.1]
[1721261340974,2.14407743,64120.0,64119.0,0.1]
[1721261341780,1.83216243,64120.0,64119.0,0.1]
[1721261343163,1.58368607,64120.0,64119.0,0.1]
[1721261343288,1.82698235,64120.0,64119.0,0.1]
[1721261345286,1.66258235,64120.0,64119.0,0.1]
[1721261345458,1.66258235,64120.0,64119.0,0.1765]
[1721261346348,1.41928607,64120.0,64119.0,0.1765]
[1721261346520,1.66260962,64120.0,64119.0,0.1765]
[1721261346881,1.66261405,64120.0,64119.0,0.1765]
[1721261348113,1.82701405,64120.0,64119.0,0.1]
[1721261348304,2.13892905,64120.0,64119.0,0.1]
[1721261348528,2.43655744,64120.0,64119.0,0.1]
[1721261348723,2.43655315,64120.0,64119.0,0.1]
[1721261348889,2.56847143,64120.0,64119.0,0.1]
[1721261349086,2.43655315,64120.0,64119.0,0.1]
[1721261349609,1.82674011,64120.0,64119.0,0.1]
[1721261350172,2.13865511,64120.0,64119.0,0.1]
[1721261350656,2.13865511,64120.0,64116.0,0.034185]
[1721261350657,0.9442,64119.0,64116.0,0.034185]
[1721261350810,2.02545811,64119.0,64116.0,0.034185]
[1721261351010,1.86105811,64119.0,64116.0,0.034185]
[1721261351210,2.17297811,64119.0,64116.0,0.034185]
[1721261352090,1.86205811,64119.0,64116.0,0.034185]
[1721261352517,1.88376632,64119.0,64116.0,0.034185]
[1721261353409,1.90676632,64119.0,64116.0,0.034185]
[1721261353612,1.64200407,64119.0,64116.0,0.034185]
[1721261353827,1.90657384,64119.0,64116.0,0.034185]
[1721261354236,2.00657384,64119.0,64116.0,0.034185]
[1721261354443,1.90657384,64119.0,64116.0,0.034185]
[1721261354643,1.90657384,64119.0,64118.0,0.150185]
[1721261354644,1.02105326,64119.0,64118.0,0.150185]
[1721261354840,0.73335968,64119.0,64118.0,0.150185]
[1721261355472,0.88228836,64119.0,64118.0,0.150185]
[1721261355672,0.61708233,64119.0,64118.0,0.150185]
[1721261355870,1.04594903,64119.0,64118.0,0.150185]
[1721261356069,1.19488081,64119.0,64118.0,0.150185]
[1721261356254,1.04595279,64119.0,64118.0,0.150185]
[1721261356668,0.61708233,64119.0,64118.0,0.150185]
[1721261356884,0.85072232,64119.0,64118.0,0.150185]
[1721261357099,0.73455881,64119.0,64118.0,0.150185]
[1721261357313,1.04647881,64119.0,64118.0,0.150185]
[1721261358195,1.16263152,64119.0,64118.0,0.150185]
[1721261358405,1.04647881,64119.0,64118.0,0.150185]
[1721261358663,0.73455881,64119.0,64118.0,0.150185]
[1721261358867,0.80208527,64119.0,64118.0,0.150185]
[1721261359097,0.24128916,64119.0,64118.0,0.150185]
[1721261359319,0.24128916,64119.0,64118.0,0.462109]
[1721261359522,0.24212916,64119.0,64118.0,0.77245274]
[1721261359724,0.12484,64119.0,64118.0,1.13437674]
[1721261359934,0.04645174,64133.0,64122.0,0.047]
[1721261360160,0.04645174,64137.0,64136.0,0.467755]
[1721261360304,0.04645174,64144.0,64137.0,0.0757]
[1721261360513,0.311808,64142.0,64137.0,0.0757]
[1721261360717,0.4283713,64141.0,64137.0,0.0757]
[1721261360922,0.311813,64141.0,64137.0,0.0757]
[1721261361163,0.04645174,64144.0,64137.0,0.0757]
[1721261361164,0.311822,64139.0,64137.0,0.0757]
[1721261361329,0.46774,64138.0,64137.0,0.0757]
[1721261361742,0.2237,64140.0,64128.0,0.049794]
[1721261361939,0.2237,64140.0,64128.0,0.047]
[1721261361940,0.155935,64129.0,64128.0,0.047]
[1721261362413,0.467806,64129.0,64128.0,0.047]
[1721261362811,0.467814,64128.0,64127.0,0.0785]
[1721261363037,0.77969,64128.0,64127.0,0.0785]
[1721261364279,1.091566,64128.0,64127.0,0.0785]
[1721261364690,0.779725,64125.0,64124.0,0.047]
[1721261365142,0.46785,64123.0,64122.0,0.078]
[1721261365336,0.77975,64123.0,64122.0,0.078]
[1721261365535,0.46788,64119.0,64118.0,0.009185]
[1721261365737,1.24610174,64119.0,64118.0,0.009185]
[1721261367045,1.24910174,64119.0,64118.0,0.009185]
[1721261368305,1.36109004,64119.0,64118.0,0.009185]
[1721261368804,1.37009004,64119.0,64118.0,0.010185]
[1721261371047,1.36937443,64119.0,64118.0,0.010185]
[1721261371595,1.39237443,64119.0,64118.0,0.010185]
[1721261374115,1.3925417,64119.0,64118.0,0.010185]
[1721261374799,1.39254965,64119.0,64118.0,0.010185]
[1721261375001,1.70446965,64119.0,64118.0,0.010185]
[1721261375170,1.70443279,64119.0,64118.0,0.010185]
[1721261375359,1.77387859,64119.0,64118.0,0.010185]
[1721261375730,2.42104719,64119.0,64118.0,0.010185]
[1721261375919,2.54627635,64119.0,64118.0,0.010185]
[1721261376151,2.45368195,64119.0,64118.0,0.010185]
[1721261377277,2.45271455,64119.0,64118.0,0.010185]
[1721261378277,1.97639455,64119.0,64118.0,0.010185]
[1721261378478,1.89519455,64119.0,64118.0,0.010185]
[1721261378938,2.05959455,64119.0,64118.0,0.010185]
[1721261380387,2.06040321,64119.0,64118.0,0.010185]
[1721261382474,1.89600321,64119.0,64118.0,0.010185]
[1721261382674,1.61014289,64119.0,64118.0,0.010185]
[1721261383323,1.6102208,64119.0,64118.0,0.010185]
[1721261383525,1.5102208,64119.0,64118.0,0.010185]
[1721261383766,1.25810174,64119.0,64118.0,0.010185]
[1721261383941,1.41651518,64119.0,64118.0,0.010185]
[1721261384219,1.37023053,64119.0,64118.0,0.010185]
[1721261385779,1.41651518,64119.0,64118.0,0.010185]
[1721261386503,1.41505011,64119.0,64118.0,0.010185]
[1721261388287,1.43805011,64119.0,64118.0,0.010185]
[1721261389641,1.43825492,64119.0,64118.0,0.010185]
[1721261390414,1.41525492,64119.0,64118.0,0.057185]
[1721261390629,0.27881194,64119.0,64118.0,0.135585]
[1721261391204,0.012,64119.0,64118.0,0.135585]
[1721261391316,0.012,64119.0,64118.0,0.603471]
[1721261392093,0.31189,64126.0,64119.0,0.237758]
[1721261392285,0.31189,64126.0,64120.0,0.002794]
[1721261392286,0.155948,64124.0,64120.0,0.002794]
[1721261392484,0.311868,64130.0,64123.0,0.1288]
[1721261392693,0.26714852,64129.0,64123.0,0.284748]
[1721261392898,0.26714852,64129.0,64124.0,0.002794]
[1721261392899,0.155937,64129.0,64124.0,0.002794]
[1721261393046,0.155937,64129.0,64125.0,0.13]
[1721261393249,0.155937,64129.0,64126.0,0.002794]
[1721261394038,0.155938,64128.0,64126.0,0.002794]
[1721261394507,0.00083,64134.0,64126.0,0.003794]
[1721261394827,0.155929,64132.0,64129.0,0.002794]
[1721261395011,0.11164128,64131.0,64129.0,0.002794]
[1721261395169,0.00083,64134.0,64127.0,0.002794]
[1721261395170,0.11164128,64130.0,64127.0,0.002794]
[1721261395348,0.00083,64134.0,64127.0,0.15594]
[1721261395349,0.155929,64132.0,64127.0,0.15594]
[1721261395545,0.003,64128.0,64127.0,0.15594]
[1721261395746,0.155929,64132.0,64127.0,0.15594]
[1721261395947,0.11209866,64131.0,64128.0,0.002794]
[1721261396159,0.11209866,64131.0,64130.0,0.002794]
[1721261396621,0.11209866,64131.0,64128.0,0.002794]
[1721261397205,0.163929,64132.0,64128.0,0.002794]
[1721261398237,0.155929,64132.0,64128.0,0.002794]
[1721261398396,0.162929,64132.0,64128.0,0.003794]
[1721261399000,0.164929,64132.0,64128.0,0.003794]
[1721261399399,0.164929,64132.0,64128.0,0.159732]
[1721261399400,0.009,64132.0,64128.0,0.159732]
[1721261399835,0.009,64132.0,64131.0,0.467791]
[1721261400247,0.007,64132.0,64131.0,0.467791]
[1721261400454,0.007,64132.0,64131.0,1.01120853]
[1721261400659,0.007,64132.0,64131.0,1.44846953]
[1721261400869,0.00083,64134.0,64133.0,0.779627]
[1721261401075,0.00083,64134.0,64133.0,1.24585974]
[1721261401293,0.00083,64134.0,64133.0,1.37125974]
[1721261401491,0.00083,64134.0,64133.0,0.593176]
[1721261402045,0.00183,64134.0,64133.0,0.287325]
[1721261402626,0.00283,64134.0,64133.0,0.297325]
[1721261402836,0.00283,64134.0,64133.0,0.1414]
[1721261403041,0.00283,64134.0,64133.0,0.0944]
[1721261403273,0.00283,64134.0,64133.0,0.016]
[1721261403274,0.782447,64134.0,64133.0,0.016]
[1721261403476,0.782447,64134.0,64133.0,0.01]
[1721261403477,0.4696,64134.0,64133.0,0.01]
[1721261403677,0.4696,64134.0,64125.0,0.1261]
[1721261403678,0.155928,64132.0,64128.0,0.002794]
[1721261404006,0.00183,64134.0,64128.0,0.002794]
[1721261404206,0.00183,64134.0,64128.0,0.07717479]
[1721261404384,0.00183,64134.0,64127.0,0.311877]
[1721261404385,0.156753,64134.0,64130.0,0.155931]
[1721261404597,0.311854,64133.0,64128.0,0.002794]
[1721261404794,0.00183,64134.0,64126.0,0.002794]
[1721261404992,0.155927,64133.0,64128.0,0.155937]
[1721261405314,0.155927,64133.0,64129.0,0.002794]
[1721261405515,0.00083,64134.0,64129.0,0.002794]
[1721261405516,0.467799,64130.0,64129.0,0.002794]
[1721261405808,0.00183,64134.0,64130.0,0.155932]
[1721261405809,0.00083,64134.0,64130.0,0.155932]
[1721261406003,0.156753,64134.0,64131.0,0.047]
[1721261406296,0.156753,64134.0,64132.0,0.002794]
[1721261406455,0.156753,64134.0,64129.0,0.155933]
[1721261406456,0.311851,64133.0,64126.0,0.004]
[1721261406654,0.467793,64131.0,64130.0,0.005]
[1721261407080,0.467793,64131.0,64125.0,0.0791]
[1721261407081,0.155939,64128.0,64125.0,0.0791]
[1721261407279,0.15594,64127.0,64126.0,0.002794]
[1721261407535,0.15594,64127.0,64125.0,0.0791]
[1721261408036,0.15594,64127.0,64126.0,0.002794]
[1721261408594,0.15594,64127.0,64125.0,0.003]
[1721261408814,0.155937,64129.0,64126.0,0.002794]
[1721261409000,0.155937,64129.0,64125.0,0.003]
[1721261409001,0.001,64127.0,64125.0,0.158944]
[1721261409198,0.468821,64127.0,64126.0,0.002794]
[1721261409405,0.155942,64126.0,64125.0,0.003]
[1721261410462,0.311857,64132.0,64123.0,0.07996879]
[1721261410662,0.311857,64132.0,64126.0,0.15594]
[1721261410823,0.155931,64131.0,64127.0,0.002794]
[1721261411023,0.311857,64132.0,64127.0,0.002794]
[1721261411231,0.00083,64134.0,64111.0,0.1]
[1721261411232,0.15594,64127.0,64126.0,0.002794]
[1721261411449,0.001,64126.0,64125.0,0.004]
[1721261411647,0.606227,64126.0,64125.0,0.004]
[1721261411853,0.918112,64126.0,64125.0,0.004]
[1721261412057,0.155955,64121.0,64118.0,0.009185]
[1721261412253,0.155955,64121.0,64119.0,0.002794]
[1721261412451,0.155955,64121.0,64118.0,0.009185]
[1721261412705,0.311907,64122.0,64118.0,0.009185]
[1721261413015,0.155953,64122.0,64119.0,0.047]
[1721261413130,0.155953,64122.0,64120.0,0.002794]
[1721261413750,0.311872,64129.0,64120.0,0.07717479]
[1721261414000,0.31187,64130.0,64120.0,0.07717479]
[1721261414001,0.155941,64127.0,64123.0,0.155949]
[1721261414249,0.42684742,64132.0,64121.0,0.0774]
[1721261414250,0.20531942,64132.0,64127.0,0.155939]
[1721261414462,0.155933,64130.0,64126.0,0.158736]
[1721261414696,0.00083,64134.0,64129.0,0.047]
[1721261415079,0.155926,64133.0,64130.0,0.002794]
[1721261416239,0.00083,64134.0,64131.0,0.077]
[1721261416400,0.00083,64134.0,64132.0,0.158721]
[1721261416596,0.005,64133.0,64131.0,0.23293]
[1721261416802,0.005,64133.0,64126.0,0.0778]
[1721261417065,0.467814,64128.0,64127.0,0.002794]
[1721261417330,0.2244,64132.0,64121.0,0.002794]
[1721261417539,0.467848,64124.0,64120.0,0.002794]
[1721261417710,0.155951,64123.0,64120.0,0.002794]
[1721261418113,0.155952,64122.0,64120.0,0.002794]
[1721261418266,0.467849,64124.0,64120.0,0.002794]
[1721261418469,0.155952,64123.0,64119.0,0.002794]
[1721261419592,0.155952,64123.0,64120.0,0.006]
[1721261419799,0.155952,64123.0,64121.0,0.002794]
[1721261419973,0.155952,64123.0,64119.0,0.158752]
[1721261420325,0.311886,64126.0,64120.0,0.23313179]
[1721261420613,0.155947,64125.0,64121.0,0.158748]
[1721261420843,0.155947,64125.0,64121.0,0.002794]
[1721261421057,0.001,64122.0,64121.0,0.002794]
[1721261421387,0.155948,64124.0,64121.0,0.002794]
[1721261421587,0.311866,64130.0,64121.0,0.07996879]
[1721261421791,0.155939,64128.0,64124.0,0.155946]
[1721261422015,0.155939,64128.0,64125.0,0.002794]
[1721261422189,0.155941,64127.0,64125.0,0.002794]
[1721261422424,0.155941,64127.0,64123.0,0.002794]
[1721261422865,0.155941,64127.0,64123.0,0.158744]
[1721261423237,0.311873,64129.0,64121.0,0.004913]
[1721261423238,0.005,64128.0,64125.0,0.002794]
[1721261423457,0.155936,64129.0,64125.0,0.002794]
[1721261423846,0.158941,64127.0,64124.0,0.002794]
[1721261424840,0.158941,64127.0,64125.0,0.001]
[1721261425051,0.155941,64127.0,64125.0,0.001]
[1721261425233,0.155941,64127.0,64124.0,0.002794]
[1721261425596,0.005,64128.0,64125.0,0.0795]
[1721261425800,0.58611812,64132.0,64130.0,0.155931]
[1721261425801,0.04986112,64132.0,64130.0,0.155931]
[1721261426157,0.04986112,64132.0,64131.0,0.002794]
[1721261426360,0.11183472,64132.0,64131.0,0.002794]
[1721261426565,0.2,64133.0,64131.0,0.002794]
[1721261426900,0.2,64133.0,64132.0,0.155928]
[1721261427117,0.2,64133.0,64132.0,0.467784]
[1721261428573,0.2,64133.0,64131.0,0.001]
[1721261428793,0.2,64133.0,64132.0,0.004]
[1721261429126,0.2,64133.0,64132.0,0.159928]
[1721261429337,0.2,64133.0,64132.0,0.155928]
[1721261429537,0.2,64133.0,64132.0,0.467784]
[1721261429794,0.201,64133.0,64132.0,0.467784]
[1721261430346,0.201,64133.0,64132.0,0.77964]
[1721261431145,0.201,64133.0,64132.0,0.82964]
[1721261431385,0.201,64133.0,64132.0,1.42367774]
[1721261431794,0.201,64133.0,64132.0,1.42767774]
[1721261432007,0.201,64133.0,64132.0,1.37767774]
[1721261432263,0.2,64133.0,64132.0,1.37767774]
[1721261432486,0.2,64133.0,64132.0,1.37367774]
[1721261432657,0.201,64133.0,64132.0,1.38367774]
[1721261432868,0.201,64133.0,64132.0,1.43167774]
[1721261433071,0.201,64133.0,64132.0,1.84353374]
[1721261433290,0.202,64133.0,64132.0,2.24764467]
[1721261433690,0.202,64133.0,64132.0,1.93578867]
[1721261434031,0.201,64133.0,64132.0,1.92778867]
[1721261434229,0.201,64133.0,64132.0,1.93378867]
[1721261434491,0.202,64133.0,64132.0,1.93378867]
[1721261434663,0.201,64133.0,64132.0,1.92278867]
[1721261434867,0.2,64133.0,64132.0,1.92978867]
[1721261435070,0.302,64133.0,64132.0,1.93578867]
[1721261435352,0.302,64133.0,64132.0,1.85453374]
[1721261435550,0.302,64133.0,64132.0,1.93605247]
[1721261436503,0.302,64133.0,64132.0,1.85453374]
[1721261436705,0.302,64133.0,64132.0,1.93606299]
[1721261437135,0.302,64133.0,64132.0,2.24791899]
[1721261438531,0.302,64133.0,64132.0,2.25151702]
[1721261438938,0.302,64133.0,64132.0,2.25151711]
[1721261439639,0.146075,64133.0,64132.0,2.92262928]
[1721261439858,0.04971724,64144.0,64133.0,1.484519]
[1721261440092,0.04971724,64144.0,64133.0,2.26285343]
[1721261440297,0.00083,64149.0,64133.0,2.26285343]
[1721261440502,0.0657,64165.0,64162.0,0.467565]
[1721261440503,0.08065754,64163.0,64162.0,0.467565]
[1721261440710,0.04922431,64163.0,64162.0,0.779275]
[1721261440917,0.0657,64165.0,64164.0,0.467551]
[1721261441166,0.155828,64174.0,64168.0,0.467518]
[1721261441366,0.46304871,64175.0,64168.0,0.311679]
[1721261441367,0.51298074,64175.0,64168.0,0.311679]
[1721261441573,0.20575603,64175.0,64171.0,0.155832]
[1721261441747,0.0646,64174.0,64169.0,0.155836]
[1721261441968,0.0646,64174.0,64165.0,0.311694]
[1721261442171,0.0646,64174.0,64172.0,0.15583]
[1721261442466,0.0646,64174.0,64173.0,0.155828]
[1721261443820,0.1441,64174.0,64173.0,0.155828]
[1721261444236,0.1441,64174.0,64173.0,0.779142]
[1721261444410,0.001,64174.0,64173.0,0.779142]
[1721261444624,0.002,64174.0,64173.0,0.779142]
[1721261444825,0.001,64174.0,64173.0,0.779142]
[1721261445172,0.0626,64177.0,64175.0,0.155823]
[1721261447145,0.0626,64177.0,64168.0,0.311681]
[1721261447146,0.0626,64177.0,64168.0,0.311679]
[1721261447397,0.155823,64175.0,64170.0,0.155835]
[1721261448359,0.155823,64175.0,64171.0,0.155833]
[1721261449515,0.311659,64173.0,64164.0,0.311701]
[1721261449717,0.1426,64169.0,64164.0,0.46608274]
[1721261450283,0.1426,64169.0,64158.0,0.4668]
[1721261450474,0.1353,64168.0,64159.0,0.255862]
[1721261450602,0.155851,64164.0,64159.0,0.255862]
[1721261450799,0.311693,64166.0,64160.0,0.155859]
[1721261450800,0.155848,64166.0,64160.0,0.155859]
[1721261451185,0.155848,64166.0,64164.0,0.008]
[1721261451376,0.155845,64166.0,64164.0,0.008]
[1721261451616,0.155851,64164.0,64159.0,0.1]
[1721261451824,0.311694,64166.0,64160.0,0.15586]
[1721261451825,0.155847,64166.0,64160.0,0.15586]
[1721261451970,0.155847,64166.0,64161.0,0.155857]
[1721261451971,0.001,64164.0,64161.0,0.155857]
[1721261452170,0.155847,64166.0,64161.0,0.155857]
[1721261452577,0.001,64166.0,64160.0,0.002794]
[1721261452776,0.001,64166.0,64159.0,0.004]
[1721261452982,0.156847,64166.0,64160.0,0.155859]
[1721261453178,0.156847,64166.0,64159.0,0.004]
[1721261453179,0.001,64164.0,64159.0,0.004]
[1721261453383,0.15586,64160.0,64159.0,0.004]
[1721261453549,0.0637,64161.0,64152.0,0.311759]
[1721261453550,0.155863,64159.0,64152.0,0.311759]
[1721261453767,0.155863,64159.0,64154.0,0.155873]
[1721261453968,0.155863,64159.0,64155.0,0.155872]
[1721261454219,0.0637,64161.0,64152.0,0.311758]
[1721261454426,0.155863,64159.0,64154.0,0.155874]
[1721261454627,0.155863,64159.0,64155.0,0.158666]
[1721261454830,0.155863,64159.0,64155.0,0.155872]
[1721261456245,0.155863,64159.0,64155.0,0.161872]
[1721261456643,0.155863,64159.0,64155.0,0.006]
[1721261457244,0.21956,64161.0,64156.0,0.155869]
[1721261457443,0.0637,64161.0,64155.0,0.006]
[1721261458168,0.15586,64160.0,64155.0,0.170871]
[1721261458533,0.15586,64160.0,64155.0,0.155871]
[1721261458904,0.15586,64160.0,64155.0,0.158871]
[1721261459103,0.15586,64160.0,64155.0,0.165871]
[1721261459335,0.15586,64160.0,64155.0,0.162871]
[1721261459669,0.15586,64160.0,64155.0,0.166871]
[1721261459870,0.15586,64160.0,64155.0,0.162871]
[1721261460341,0.21956,64161.0,64156.0,0.155868]
[1721261460540,0.15586,64160.0,64156.0,0.155868]
[1721261460716,0.0637,64161.0,64155.0,0.008]
[1721261460915,0.0637,64161.0,64156.0,0.002794]
[1721261460916,0.375419,64161.0,64156.0,0.002794]
[1721261461155,0.680435,64157.0,64156.0,0.002794]
[1721261461315,0.30017,64156.0,64155.0,0.001]
[1721261461511,1.48903924,64156.0,64155.0,0.005]
[1721261461709,1.74660445,64156.0,64155.0,0.005]
[1721261461913,0.155901,64143.0,64142.0,0.002794]
[1721261462111,0.1443,64142.0,64138.0,0.155912]
[1721261462312,0.1443,64142.0,64136.0,0.311832]
[1721261462313,0.1443,64142.0,64139.0,0.155911]
[1721261462510,0.300204,64142.0,64137.0,0.155915]
[1721261462745,0.155907,64141.0,64136.0,0.155918]
[1721261464088,0.15591,64140.0,64135.0,0.155919]
[1721261464294,0.155921,64135.0,64132.0,0.000913]
[1721261464730,0.155917,64137.0,64136.0,0.004]
[1721261464937,0.232412,64139.0,64136.0,0.004]
[1721261465315,0.232412,64139.0,64134.0,0.155922]
[1721261465316,0.155914,64138.0,64134.0,0.155922]
[1721261465665,0.155923,64135.0,64132.0,0.007913]
[1721261466105,0.0627,64137.0,64132.0,0.007913]
[1721261466106,0.0627,64137.0,64134.0,0.155923]